fUST/lending_fUST_20250406
["ID","MTS","AMOUNT","RATE_DAILY","PERIOD"]
[357253678,1743946244773,-151.0,0.00025298,2]
[357253679,1743946244783,-151.0,0.00025298,2]
[357253680,1743946244792,-151.0,0.00025298,2]
[357253681,1743946244802,-151.0,0.00025298,2]
[357253682,1743946244816,-151.0,0.00025298,2]
[357253683,1743946244826,-302.0,0.00025298,2]
[357253684,1743946244836,-8339.94637742,0.00025314,5]
[357253685,1743946244846,-500.0,0.00025373,2]
[357253686,1743946244857,-500.0,0.00025373,2]
[357253687,1743946244867,-500.4449197,0.00025373,2]
[357253688,1743946244877,-500.0,0.00025373,2]
[357253689,1743946244887,-500.0,0.00025373,2]
[357253690,1743946244897,-500.0,0.00025373,2]
[357253691,1743946244907,-284.86549837,0.00025373,2]
[357253692,1743946244918,-449.0,0.000255,2]
[357253693,1743946244928,-307.8423176,0.00025542,2]
[357253694,1743946244938,-250.0,0.00025656,2]
[357253695,1743946244948,-152.22,0.00025711,2]
[357253696,1743946244959,-465.81593794,0.00025711,2]
[357253697,1743946244970,-800.0,0.00026,3]
[357253698,1743946244980,-516.16970741,0.00026,2]
[357253699,1743946244990,-75079.643639,0.00026,30]
[357253700,1743946245000,-19900.0,0.00026,2]
[357253701,1743946245010,-296.69985118,0.00026075,2]
[357253702,1743946245021,-1514.66681177,0.00026211,15]
[357253703,1743946245031,-8339.94637742,0.00026452,6]
[357253704,1743946245040,-151.0,0.00026452,7]
[357253705,1743946245050,-151.0,0.00026452,7]
[357253706,1743946245060,-449.81367,0.00026452,7]
[357253707,1743946245070,-449.81367,0.00026452,7]
[357253708,1743946245079,-151.0,0.00026452,7]
[357253709,1743946245089,-151.0,0.00026452,7]
[357253710,1743946245099,-151.0,0.00026452,7]
[357253711,1743946245109,-152.921,0.00026789,2]
[357253712,1743946245118,-542.0,0.00026789,2]
[357253713,1743946245128,-1478.0,0.00026789,2]
[357253714,1743946245138,-401.0,0.00026789,2]
[357253715,1743946245147,-2255.753,0.00026789,2]
[357253716,1743946245157,-729.16666667,0.00026795,2]
[357253717,1743946245167,-46380.0606242,0.00026837,2]
[357253718,1743946245177,-196.00784353,0.00026837,2]
[357253719,1743946245186,-151.0,0.00026837,7]
[357253720,1743946245196,-151.0,0.00026837,7]
[357253721,1743946245206,-449.81367,0.00026837,7]
[357253722,1743946245216,-449.81367,0.00026837,7]
[357253723,1743946245225,-151.0,0.00026837,7]
[357253724,1743946245235,-151.0,0.00026837,7]
[357253725,1743946245245,-231900.303121,0.00026837,2]
[357253726,1743946245254,-980.03921765,0.00026837,2]
[357253727,1743946245264,-46380.0606242,0.00026854,2]
[357253728,1743946245275,-196.00784353,0.00026854,2]
[357253729,1743946245286,-151.0,0.00026861,2]
[357253730,1743946245296,-200.0,0.00026861,2]
[357253731,1743946245306,-160.0,0.00026862,2]
[357253732,1743946245316,-2112.7197851,0.00026871,2]
[357253733,1743946245326,-500.26719719,0.00026873,2]
[357253734,1743946245336,-500.0,0.00026873,2]
[357253735,1743946245345,-500.0,0.00026873,2]
[357253736,1743946245355,-519.31581765,0.00026873,2]
[357253737,1743946245370,-500.0,0.00026873,2]
[357253738,1743946245380,-500.0,0.00026873,2]
[357253739,1743946245390,-514.68640412,0.00026873,2]
[357253740,1743946245401,-500.0,0.00026873,2]
[357253741,1743946245411,-500.0,0.00026873,2]
[357253742,1743946245421,-500.0,0.00026873,2]
[357253743,1743946245431,-500.0,0.00026873,2]
[357253744,1743946245441,-488.91576977,0.00026873,2]
[357253745,1743946245451,-500.0,0.00026873,2]
[357253746,1743946245460,-500.0,0.00026873,2]
[357253747,1743946245470,-500.0,0.00026873,2]
[357253748,1743946245480,-500.0,0.00026873,2]
[357253749,1743946245489,-500.0,0.00026873,2]
[357253750,1743946245499,-500.0,0.00026873,2]
[357253751,1743946245508,-500.0,0.00026873,2]
[357253752,1743946245520,-196.00784353,0.00026879,2]
[357253753,1743946245529,-784.03137412,0.00026889,2]
[357253754,1743946245539,-366.692016,0.00026889,7]
[357253755,1743946245549,-366.692016,0.00026889,7]
[357253756,1743946245558,-180.148891,0.00026889,7]
[357253757,1743946245567,-180.148891,0.00026889,7]
[357253758,1743946245577,-151.0,0.00026889,7]
[357253759,1743946245586,-201.01350009,0.00026889,7]
[357253760,1743946245595,-151.0,0.00026889,7]
[357253761,1743946245605,-3687.280585,0.00026889,7]
[357253762,1743946245614,-1860.43337757,0.00026889,7]
[357253763,1743946245761,-1826.84720743,0.00026889,7]
[357253764,1743946245771,-784.03137412,0.0002689,2]
[357253765,1743946245781,-17746.92516845,0.00026899,7]
[357253787,1743946246643,-151.0,0.00026837,7]
[357253788,1743946246652,-107210.04825507,0.00026899,7]
[357253789,1743946246703,-1353.23264493,0.00026899,7]
[357253790,1743946246715,-4730.00000005,0.00026899,7]
[357253791,1743946246765,-28959.7490764,0.00026899,7]
[357253792,1743946246775,-366.692016,0.00026899,7]
[357253793,1743946246785,-366.692016,0.00026899,7]
[357253794,1743946246794,-180.148891,0.00026899,7]
[357253795,1743946246804,-180.148891,0.00026899,7]
[357253796,1743946246813,-151.0,0.00026899,7]
[357253797,1743946246823,-3687.280585,0.00026899,7]
[357253799,1743946246832,-3687.280585,0.00026899,7]
[357253800,1743946246841,-151.0,0.00026899,7]
[357253801,1743946246850,-151.0,0.00026899,7]
[357253802,1743946246859,-449.81367,0.00026899,7]
[357253803,1743946246869,-449.81367,0.00026899,7]
[357253804,1743946246877,-151.0,0.00026899,7]
[357253805,1743946246887,-222.03035,0.00026899,7]
[357253806,1743946246896,-151.0,0.00026899,7]
[357253807,1743946246905,-152207.99134607,0.000269,2]
[357253808,1743946246915,-68332.44650586,0.000269,2]
[357253809,1743946246925,-366.692016,0.000269,7]
[357253810,1743946246934,-366.692016,0.000269,7]
[357253811,1743946246943,-180.148891,0.000269,7]
[357253812,1743946246952,-180.148891,0.000269,7]
[357253813,1743946246961,-198.003652,0.000269,7]
[357253814,1743946246971,-3687.280585,0.000269,7]
[357253815,1743946246980,-3687.280585,0.000269,7]
[357253816,1743946246990,-151.0,0.000269,7]
[357253817,1743946247000,-190.730731,0.000269,7]
[357253818,1743946247009,-449.81367,0.000269,7]
[357253819,1743946247019,-449.81367,0.000269,7]
[357253820,1743946247029,-151.0,0.000269,7]
[357253821,1743946247039,-151.0,0.000269,7]
[357253822,1743946247048,-156.587,0.00026916,2]
[357253823,1743946247057,-392.01568706,0.00026963,2]
[357253824,1743946247067,-217.86016674,0.00026971,2]
[357253825,1743946247076,-2644.0,0.00026973,2]
[357253826,1743946247085,-2644.0,0.00026973,2]
[357253827,1743946247095,-2644.0,0.00026973,2]
[357253828,1743946247104,-2644.0,0.00026973,2]
[357253829,1743946247113,-2644.0,0.00026973,2]
[357253830,1743946247122,-2644.0,0.00026973,2]
[357253831,1743946247131,-2644.0,0.00026973,2]
[357253832,1743946247141,-2644.0,0.00026973,2]
[357253833,1743946247150,-2644.0,0.00026973,2]
[357253834,1743946247159,-2644.0,0.00026973,2]
[357253835,1743946247169,-2644.0,0.00026973,2]
[357253836,1743946247178,-2644.0,0.00026973,2]
[357253837,1743946247188,-2644.0,0.00026973,2]
[357253838,1743946247197,-2644.0,0.00026973,2]
[357253839,1743946247206,-2644.0,0.00026973,2]
[357253840,1743946247215,-2644.0,0.00026973,2]
[357253841,1743946247224,-2644.0,0.00026973,2]
[357253842,1743946247234,-2644.0,0.00026973,2]
[357253843,1743946247243,-2644.0,0.00026973,2]
[357253844,1743946247252,-2644.0,0.00026973,2]
[357253845,1743946247261,-2644.0,0.00026973,2]
[357253846,1743946247271,-2644.0,0.00026973,2]
[357253847,1743946247281,-2644.0,0.00026973,2]
[357253848,1743946247294,-500.0,0.00026973,2]
[357253849,1743946247304,-500.0,0.00026973,2]
[357253850,1743946247313,-504.18321161,0.00026973,2]
[357253851,1743946247323,-501.45871172,0.00026973,2]
[357253852,1743946247333,-500.0,0.00026973,2]
[357253853,1743946247342,-500.0,0.00026973,2]
[357253854,1743946247352,-500.0,0.00026973,2]
[357253855,1743946247362,-500.0,0.00026973,2]
[357253856,1743946247372,-500.0,0.00026973,2]
[357253857,1743946247381,-500.0,0.00026973,2]
[357253858,1743946247391,-500.0,0.00026973,2]
[357253859,1743946247400,-284.75716536,0.00026973,2]
[357253860,1743946247410,-500.0,0.00026973,2]
[357253861,1743946247419,-151.0,0.00026973,7]
[357253862,1743946247429,-160.129618,0.00026973,7]
[357253863,1743946247438,-493.743796,0.00026973,7]
[357253864,1743946247448,-493.743796,0.00026973,7]
[357253865,1743946247457,-196.00784353,0.0002698,2]
[357253866,1743946247466,-196.00784353,0.0002699,2]
[357253867,1743946247476,-150939.24543076,0.00027,2]
[357253868,1743946247486,-2448.0,0.00027,2]
[357253869,1743946247496,-151.0,0.00027,19]
[357253870,1743946247506,-151.0,0.00027,7]
[357253871,1743946247516,-151.0,0.00027,7]
[357253872,1743946247525,-240.200754,0.00027,7]
[357253873,1743946247535,-151.0,0.00027,7]
[357253874,1743946247544,-253.417297,0.00027,7]
[357253875,1743946247556,-366.692016,0.00027,7]
[357253876,1743946247565,-366.692016,0.00027,7]
[357253877,1743946247575,-180.148891,0.00027,7]
[357253878,1743946247584,-180.148891,0.00027,7]
[357253879,1743946247594,-3687.280585,0.00027,7]
[357253880,1743946247604,-3687.280585,0.00027,7]
[357253881,1743946247613,-151.0,0.00027,7]
[357253882,1743946247623,-449.81367,0.00027,7]
[357253883,1743946247632,-449.81367,0.00027,7]
[357253884,1743946247641,-151.0,0.00027,7]
[357253885,1743946247651,-151.0,0.00027,7]
[357253886,1743946247660,-823.0,0.00027028,2]
[357253887,1743946247670,-500.0,0.00027397,5]
[357253888,1743946247679,-162.20104245,0.00027479,5]
[357253889,1743946247688,-603.521637,0.00027479,5]
[357253890,1743946247698,-1000.0,0.00027479,5]
[357253891,1743946247708,-1000.0,0.00027479,5]
[357253892,1743946247719,-1000.0,0.00027479,5]
[357253893,1743946247729,-1000.0,0.00027479,5]
[357253894,1743946247739,-3115.74620073,0.00027481,2]
[357253895,1743946247748,-8339.94637742,0.0002759,7]
[357253896,1743946247758,-392.570235,0.00028129,4]
[357253897,1743946247767,-207.4,0.0002823,2]
[357253898,1743946247777,-8339.94637742,0.00028728,8]
[357253899,1743946247786,-10136.77349868,0.00028893,2]
[357253900,1743946247796,-328573.0216513,0.00029,7]
[357253901,1743946247806,-656212.15342974,0.00029,7]
[357253902,1743946247816,-2392.0,0.00029,2]
[357253903,1743946247826,-3316.0,0.00029,2]
[357253904,1743946247836,-349.8,0.00029,7]
[357253905,1743946247847,-15443.03483501,0.00029,7]
[357253906,1743946247858,-36266.69035819,0.00029,7]
[357253907,1743946247868,-15443.03483501,0.00029,7]
[357253908,1743946247878,-36266.69035819,0.00029,7]
[357253909,1743946247890,-151.0,0.00029,7]
[357253910,1743946247900,-151.28539,0.00029,7]
[357253911,1743946247910,-151.0,0.00029,7]
[357253912,1743946247920,-273.677301,0.00029,7]
[357253913,1743946247930,-151.0,0.00029,7]
[357253914,1743946247940,-151.0,0.00029,7]
[357253915,1743946247951,-253.274319,0.00029,7]
[357253916,1743946247961,-253.274319,0.00029,7]
[357253917,1743946247971,-253.274319,0.00029,7]
[357253918,1743946247980,-253.274319,0.00029,7]
[357253919,1743946247990,-151.0,0.00029,7]
[357253920,1743946247999,-151.0,0.00029,7]
[357253921,1743946248009,-151.0,0.00029,7]
[357253922,1743946248020,-151.0,0.00029,7]
[357253923,1743946248030,-151.0,0.00029,7]
[357253924,1743946248040,-151.0,0.00029,7]
[357253925,1743946248051,-151.0,0.00029,7]
[357253926,1743946248061,-151.0,0.00029,7]
[357253927,1743946248070,-270.452546,0.00029,7]
[357253928,1743946248079,-270.452546,0.00029,7]
[357253929,1743946248089,-270.452546,0.00029,7]
[357253930,1743946248098,-270.452546,0.00029,7]
[357253931,1743946248107,-151.0,0.00029,7]
[357253932,1743946248116,-151.0,0.00029,7]
[357253933,1743946248126,-151.0,0.00029,7]
[357253934,1743946248136,-156.771462,0.00029,7]
[357253935,1743946248146,-151.0,0.00029,7]
[357253936,1743946248155,-151.0,0.00029,7]
[357253937,1743946248165,-151.0,0.00029,7]
[357253938,1743946248176,-151.0,0.00029,7]
[357253939,1743946248186,-301.682801,0.00029,7]
[357253940,1743946248196,-151.0,0.00029,7]
[357253941,1743946248207,-151.0,0.00029,7]
[357253942,1743946248218,-151.0,0.00029,7]
[357253943,1743946248227,-151.0,0.00029,7]
[357253944,1743946248237,-151.0,0.00029,7]
[357253945,1743946248247,-208.740892,0.00029,7]
[357253946,1743946248257,-151.0,0.00029,7]
[357253947,1743946248267,-151.0,0.00029,7]
[357253948,1743946248281,-151.0,0.00029,7]
[357253949,1743946248291,-151.0,0.00029,7]
[357253950,1743946248301,-151.0,0.00029,7]
[357253951,1743946248311,-151.0,0.00029,7]
[357253952,1743946248321,-151.0,0.00029,7]
[357253953,1743946248331,-162.333576,0.00029,7]
[357253954,1743946248341,-153.650653,0.00029,7]
[357253955,1743946248350,-155.963774,0.00029,7]
[357253956,1743946248360,-155.963774,0.00029,7]
[357253957,1743946248369,-155.963774,0.00029,7]
[357253958,1743946248379,-155.963774,0.00029,7]
[357253959,1743946248389,-151.0,0.00029,7]
[357253960,1743946248398,-152.376103,0.00029,7]
[357253961,1743946248409,-151.0,0.00029,7]
[357253962,1743946248419,-151.0,0.00029,7]
[357253963,1743946248429,-151.0,0.00029,7]
[357253964,1743946248439,-168.822787,0.00029,7]
[357253965,1743946248449,-258.61563749,0.00029,7]
[357253967,1743946771517,505.0,0.00023,10]
[357253969,1743946863659,182.051223,0.00013699,2]
[357254019,1743947437058,-300.0,0.00021405,2]
[357254020,1743947437068,-9802.57102644,0.00021406,2]
[357254021,1743947437080,-1035.5,0.00021406,2]
[357254022,1743947437091,-855.24220754,0.00021406,2]
[357254023,1743947437119,-786.96615012,0.00021406,2]
[357254024,1743947437128,-2336.8096506,0.0002189,2]
[357254025,1743947437138,-4499.82052728,0.000219,3]
[357254075,1743947438645,-285.06759193,0.000219,3]
[357254082,1743947438705,-1051.82690105,0.000219,3]
[357254124,1743947441025,-606.2673702,0.000219,3]
[357254125,1743947441035,-500.0,0.00021973,2]
[357254126,1743947441045,-500.0,0.00021973,2]
[357254127,1743947441055,-153.7326298,0.00021973,2]
[357254128,1743947441067,-346.2673702,0.00021973,2]
[357254129,1743947441077,-500.0,0.00021973,2]
[357254130,1743947441087,-500.0,0.00021973,2]
[357254131,1743947441097,-500.0,0.00021973,2]
[357254132,1743947441107,-500.0,0.00021973,2]
[357254133,1743947441116,-500.0,0.00021973,2]
[357254134,1743947441125,-164.32,0.0002198,3]
[357254135,1743947441135,-500.0,0.00021989,2]
[357254136,1743947441145,-632.73068488,0.00021989,2]
[357254137,1743947441157,-423.29496819,0.00021989,2]
[357254138,1743947441167,-83.56582383,0.00021989,2]
[357254186,1743947446904,-416.43417617,0.00021989,2]
[357254187,1743947446915,-1056.02565307,0.00021989,2]
[357254188,1743947446925,-500.0,0.00021989,2]
[357254189,1743947446936,-500.0,0.00021989,2]
[357254190,1743947446946,-1056.02565307,0.00021989,2]
[357254191,1743947446955,-1056.02565307,0.00021989,2]
[357254192,1743947446965,-500.0,0.00021989,2]
[357254193,1743947446975,-500.0,0.00021989,2]
[357254194,1743947446984,-1056.02565307,0.00021989,2]
[357254195,1743947446995,-500.0,0.00021989,2]
[357254196,1743947447005,-1056.02565307,0.00021989,2]
[357254197,1743947447015,-500.0,0.00021989,2]
[357254198,1743947447024,-1056.02565307,0.00021989,2]
[357254199,1743947447035,-1056.02565307,0.00021989,2]
[357254200,1743947447044,-500.0,0.00021989,2]
[357254201,1743947447055,-1056.02565307,0.00021989,2]
[357254202,1743947447066,-163.4021642,0.00021989,2]
[357254203,1743947447076,-1056.02565307,0.00021989,2]
[357254204,1743947447086,-500.0,0.00021989,2]
[357254205,1743947447096,-1056.02565307,0.00021989,2]
[357254206,1743947447106,-1056.02565307,0.00021989,2]
[357254207,1743947447116,-500.0,0.00021989,2]
[357254208,1743947447126,-1056.02565307,0.00021989,2]
[357254209,1743947447136,-500.0,0.00021989,2]
[357254210,1743947447147,-1056.02565307,0.00021989,2]
[357254211,1743947447157,-1056.02565307,0.00021989,2]
[357254212,1743947447167,-1056.02565307,0.00021989,2]
[357254213,1743947447177,-949.02184642,0.00021989,2]
[357254214,1743947447190,-107.00380665,0.00021989,2]
[357254215,1743947447200,-1056.02565307,0.00021989,2]
[357254216,1743947447210,-1056.02565307,0.00021989,2]
[357254217,1743947447220,-1008.86285305,0.00021989,2]
[357254218,1743947447232,-47.16280002,0.00021989,2]
[357254219,1743947447242,-905.83719998,0.00021989,2]
[357254220,1743947447254,-150.18845309,0.00021989,2]
[357254221,1743947447264,-1056.02565307,0.00021989,2]
[357254222,1743947447273,-1056.02565307,0.00021989,2]
[357254223,1743947447283,-1056.02565307,0.00021989,2]
[357254224,1743947447293,-1056.02565307,0.00021989,2]
[357254225,1743947447303,-1056.02565307,0.00021989,2]
[357254226,1743947447313,-1056.02565307,0.00021989,2]
[357254227,1743947447323,-1056.02565307,0.00021989,2]
[357254228,1743947447333,-1056.02565307,0.00021989,2]
[357254229,1743947447343,-1056.02565307,0.00021989,2]
[357254230,1743947447353,-1056.02565307,0.00021989,2]
[357254231,1743947447363,-1056.02565307,0.00021989,2]
[357254232,1743947447377,-1056.02565307,0.00021989,2]
[357254233,1743947447391,-1056.02565307,0.00021989,2]
[357254234,1743947447407,-1056.02565307,0.00021989,2]
[357254235,1743947447421,-1056.02565307,0.00021989,2]
[357254236,1743947447433,-1056.02565307,0.00021989,2]
[357254237,1743947447444,-1056.02565307,0.00021989,2]
[357254238,1743947447457,-1056.02565307,0.00021989,2]
[357254239,1743947447469,-1056.02565307,0.00021989,2]
[357254240,1743947447482,-1056.02565307,0.00021989,2]
[357254241,1743947447497,-1056.02565307,0.00021989,2]
[357254242,1743947447510,-1056.02565307,0.00021989,2]
[357254243,1743947447523,-1056.02565307,0.00021989,2]
[357254244,1743947447536,-1056.02565307,0.00021989,2]
[357254245,1743947447550,-1056.02565307,0.00021989,2]
[357254246,1743947447563,-1056.02565307,0.00021989,2]
[357254247,1743947447576,-1056.02565307,0.00021989,2]
[357254248,1743947447592,-1056.02565307,0.00021989,2]
[357254249,1743947447611,-1056.02565307,0.00021989,2]
[357254250,1743947447628,-1600.78783661,0.00021989,2]
[357254251,1743947447642,-1600.78783661,0.00021989,2]
[357254252,1743947447655,-1600.78783661,0.00021989,2]
[357254253,1743947447667,-1600.78783661,0.00021989,2]
[357254254,1743947447679,-1600.78783661,0.00021989,2]
[357254255,1743947447690,-1600.78783661,0.00021989,2]
[357254256,1743947447700,-1600.78783661,0.00021989,2]
[357254257,1743947447712,-1600.78783661,0.00021989,2]
[357254258,1743947447725,-1600.78783661,0.00021989,2]
[357254259,1743947447739,-1600.78783661,0.00021989,2]
[357254260,1743947447752,-1600.78783661,0.00021989,2]
[357254261,1743947447764,-1600.78783661,0.00021989,2]
[357254262,1743947447778,-1600.78783661,0.00021989,2]
[357254263,1743947447792,-1600.78783661,0.00021989,2]
[357254264,1743947447805,-1600.78783661,0.00021989,2]
[357254265,1743947447818,-1600.78783661,0.00021989,2]
[357254266,1743947447830,-1600.78783661,0.00021989,2]
[357254267,1743947447840,-1600.78783661,0.00021989,2]
[357254268,1743947447850,-1600.78783661,0.00021989,2]
[357254269,1743947447861,-1600.78783661,0.00021989,2]
[357254270,1743947447873,-1600.78783661,0.00021989,2]
[357254271,1743947447886,-1600.78783661,0.00021989,2]
[357254272,1743947447899,-1600.78783661,0.00021989,2]
[357254273,1743947447912,-1600.78783661,0.00021989,2]
[357254274,1743947447923,-1600.78783661,0.00021989,2]
[357254275,1743947447934,-1600.78783661,0.00021989,2]
[357254276,1743947447946,-1600.78783661,0.00021989,2]
[357254277,1743947447959,-1600.78783661,0.00021989,2]
[357254278,1743947447971,-1600.78783661,0.00021989,2]
[357254279,1743947447982,-1600.78783661,0.00021989,2]
[357254280,1743947447994,-1600.78783661,0.00021989,2]
[357254281,1743947448004,-152.23,0.00021995,2]
[357254282,1743947448016,-500.0,0.00022733,2]
[357254283,1743947448027,-185.728197,0.00022919,2]
[357254284,1743947448040,-500.0,0.00023043,2]
[357254285,1743947448051,-6442.98239037,0.00023176,4]
[357254286,1743947448062,-500.0,0.00023266,2]
[357254287,1743947448074,-471.44440849,0.00023266,2]
[357254288,1743947448086,-160.0,0.00023267,2]
[357254289,1743947448098,-160.0,0.00023267,2]
[357254290,1743947448109,-729.16666667,0.00023267,2]
[357254291,1743947448121,-373.63301009,0.00023267,2]
[357254292,1743947448132,-160.0,0.00023267,2]
[357254293,1743947448144,-420.0,0.00023274,2]
[357254294,1743947448155,-500.0,0.00024355,2]
[357254295,1743947448166,-1590.9994072,0.00024408,2]
[357254296,1743947448177,-6442.98239037,0.00024452,5]
[357254297,1743947448189,-500.0,0.00024773,2]
[357254298,1743947448200,-500.0,0.00024773,2]
[357254299,1743947448212,-500.0,0.00024873,2]
[357254300,1743947448223,-500.0,0.00024873,2]
[357254301,1743947448235,-500.0,0.00024873,2]
[357254302,1743947448247,-500.0,0.00024873,2]
[357254303,1743947448258,-281.57643986,0.00024873,2]
[357254304,1743947448269,-500.0,0.00024873,2]
[357254305,1743947448281,-500.0,0.00024873,2]
[357254306,1743947448292,-500.0,0.00024873,2]
[357254307,1743947448303,-424.13067947,0.00024873,2]
[357254308,1743947448314,-500.0,0.00024873,2]
[357254309,1743947448326,-515.6810919,0.000249,2]
[357254531,1743947564613,-153.0,0.00028192,30]
[357254532,1743947564664,-153.0,0.00028192,30]
[357254533,1743947564715,-153.0,0.00028192,30]
[357254534,1743947564787,-183.706,0.0003773,49]
[357254535,1743947564841,-1000.0,0.00041211,120]
[357254536,1743947565032,-2677.30421407,0.000418,30]
[357254537,1743947565090,-396801.29501611,0.0004299,30]
[357254538,1743947565144,-278.17658,0.0004299,120]
[357254539,1743947565196,-151.0,0.0004299,120]
[357254540,1743947565247,-151.0,0.0004299,120]
[357254541,1743947565297,-151.0,0.0004299,120]
[357254542,1743947565346,-431.438634,0.0004299,120]
[357254543,1743947565397,-431.438634,0.0004299,120]
[357254544,1743947565447,-220.015209,0.0004299,120]
[357254545,1743947565498,-220.015209,0.0004299,120]
[357254546,1743947565547,-151.0,0.0004299,120]
[357254547,1743947565596,-202.619455,0.0004299,120]
[357254548,1743947565647,-202.619455,0.0004299,120]
[357254549,1743947565702,-151.0,0.0004299,120]
[357254550,1743947565754,-230.420382,0.0004299,120]
[357254551,1743947565803,-2257.668351,0.0004299,120]
[357254552,1743947565853,-2257.668351,0.0004299,120]
[357254553,1743947565904,-224.906835,0.0004299,120]
[357254554,1743947565956,-224.906835,0.0004299,120]
[357254555,1743947566009,-250.0,0.00043,30]
[357254556,1743947566061,-151.0,0.00043,120]
[357254557,1743947566112,-151.0,0.00043,120]
[357254558,1743947566163,-151.0,0.00043,120]
[357254559,1743947566212,-204.428346,0.00043,120]
[357254560,1743947566262,-151.0,0.00043,120]
[357254561,1743947566312,-151.0,0.00043,120]
[357254562,1743947566360,-431.438634,0.00043,120]
[357254563,1743947566410,-431.438634,0.00043,120]
[357254564,1743947566464,-431.438634,0.00043,120]
[357254565,1743947566514,-431.438634,0.00043,120]
[357254566,1743947566561,-431.438634,0.00043,120]
[357254567,1743947566611,-431.438634,0.00043,120]
[357254568,1743947566664,-220.015209,0.00043,120]
[357254569,1743947566716,-220.015209,0.00043,120]
[357254570,1743947566767,-220.015209,0.00043,120]
[357254571,1743947566818,-220.015209,0.00043,120]
[357254572,1743947566869,-220.015209,0.00043,120]
[357254573,1743947566922,-220.015209,0.00043,120]
[357254574,1743947566970,-151.0,0.00043,120]
[357254575,1743947567016,-151.0,0.00043,120]
[357254576,1743947567062,-151.0,0.00043,120]
[357254577,1743947567107,-202.619455,0.00043,120]
[357254578,1743947567153,-202.619455,0.00043,120]
[357254579,1743947567198,-202.619455,0.00043,120]
[357254580,1743947567241,-202.619455,0.00043,120]
[357254581,1743947567284,-202.619455,0.00043,120]
[357254582,1743947567327,-202.619455,0.00043,120]
[357254583,1743947567371,-151.0,0.00043,120]
[357254584,1743947567414,-151.0,0.00043,120]
[357254585,1743947567458,-151.0,0.00043,120]
[357254586,1743947567500,-2257.668351,0.00043,120]
[357254587,1743947567542,-2257.668351,0.00043,120]
[357254588,1743947567586,-2257.668351,0.00043,120]
[357254589,1743947567630,-2257.668351,0.00043,120]
[357254590,1743947567674,-2257.668351,0.00043,120]
[357254591,1743947567717,-2257.668351,0.00043,120]
[357254592,1743947567758,-224.906835,0.00043,120]
[357254593,1743947567800,-224.906835,0.00043,120]
[357254594,1743947567841,-224.906835,0.00043,120]
[357254595,1743947567884,-224.906835,0.00043,120]
[357254596,1743947567928,-224.906835,0.00043,120]
[357254597,1743947567978,-224.906835,0.00043,120]
[357254598,1743947568030,-514.9220557,0.00043835,120]
[357254599,1743947568084,-529.98387815,0.00044183,30]
[357254600,1743947568136,-500.0,0.000447,48]
[357254601,1743947568182,-224.906835,0.00045,120]
[357254602,1743947568226,-224.906835,0.00045,120]
[357254603,1743947568270,-500.0,0.000452,48]
[357254604,1743947568314,-2000.0,0.000457,39]
[357254605,1743947568358,-2000.0,0.000457,39]
[357254606,1743947568403,-220.015209,0.000457,120]
[357254607,1743947568448,-220.015217,0.000457,120]
[357254608,1743947568493,-151.0,0.000457,120]
[357254609,1743947568537,-500.0,0.000457,48]
[357254610,1743947568584,-202.619455,0.000457,120]
[357254611,1743947568630,-202.619452,0.000457,120]
[357254612,1743947568677,-151.0,0.000457,120]
[357254613,1743947568724,-2257.668351,0.000457,120]
[357254614,1743947568924,-2257.668354,0.000457,120]